fUST/lending_fUST_20240902
["ID","MTS","AMOUNT","RATE_DAILY","PERIOD"]
[336875516,1725225047524,-500.0,0.00024931,2]
[336875517,1725225047534,-2976.45,0.00024931,2]
[336875518,1725225047543,-357.55163027,0.00024931,2]
[336875519,1725225047552,-726.45,0.00024931,2]
[336875520,1725225047561,-500.0,0.00024931,2]
[336875521,1725225047571,-1949.45,0.00024931,2]
[336875522,1725225047580,-500.0,0.00024931,2]
[336875523,1725225047590,-500.0,0.00024931,2]
[336875524,1725225047599,-577.33,0.00024931,2]
[336875525,1725225047608,-269.24649168,0.00024931,2]
[336875526,1725225047618,-2301.47,0.00024931,2]
[336875527,1725225047627,-509.6084453,0.00024931,2]
[336875528,1725225047636,-1412.53,0.00024931,2]
[336875529,1725225047645,-500.0,0.00024931,2]
[336875530,1725225047654,-500.0,0.00024931,2]
[336875531,1725225047663,-500.0,0.00024931,2]
[336875532,1725225047672,-500.0,0.00024931,2]
[336875533,1725225047683,-959.62,0.00024931,2]
[336875534,1725225047693,-702.1,0.00024931,2]
[336875535,1725225047702,-500.0,0.00024931,2]
[336875536,1725225047711,-3034.26,0.00024931,2]
[336875537,1725225047721,-2358.38,0.00024931,2]
[336875538,1725225047730,-512.17694907,0.00024931,2]
[336875539,1725225047739,-1747.52,0.00024931,2]
[336875540,1725225047748,-500.0,0.00024931,2]
[336875541,1725225047757,-500.0,0.00024931,2]
[336875542,1725225047766,-540.33,0.00024931,2]
[336875543,1725225047775,-531.45,0.00024931,2]
[336875544,1725225047785,-500.0,0.00024931,2]
[336875545,1725225047795,-1692.45,0.00024931,2]
[336875546,1725225047804,-500.0,0.00024931,2]
[336875547,1725225047814,-500.0,0.00024931,2]
[336875548,1725225047823,-508.46,0.00024931,2]
[336875549,1725225047832,-708.36,0.00024931,2]
[336875550,1725225047841,-500.0,0.00024931,2]
[336875551,1725225047851,-500.0,0.00024931,2]
[336875552,1725225047860,-500.0,0.00024931,2]
[336875553,1725225047870,-500.0,0.00024931,2]
[336875554,1725225047879,-747.59,0.00024931,2]
[336875555,1725225047888,-1657.85,0.00024931,2]
[336875556,1725225047898,-838.65,0.00024931,2]
[336875557,1725225047907,-500.0,0.00024931,2]
[336875558,1725225047915,-500.0,0.00024931,2]
[336875559,1725225047924,-633.95,0.00024931,2]
[336875560,1725225047933,-1376.41,0.00024931,2]
[336875561,1725225047942,-500.0,0.00024931,2]
[336875562,1725225047952,-500.0,0.00024931,2]
[336875563,1725225047961,-500.0,0.00024931,2]
[336875564,1725225047970,-1292.18,0.00024931,2]
[336875565,1725225047979,-1532.4,0.00024931,2]
[336875566,1725225047988,-1077.65,0.00024931,2]
[336875567,1725225047997,-500.0,0.00024931,2]
[336875568,1725225048007,-500.0,0.00024931,2]
[336875569,1725225048016,-500.0,0.00024931,2]
[336875570,1725225048025,-1291.81,0.00024931,2]
[336875571,1725225048035,-521.69064609,0.00024931,2]
[336875572,1725225048044,-793.52,0.00024931,2]
[336875573,1725225048053,-1692.87,0.00024931,2]
[336875574,1725225048063,-667.57,0.00024931,2]
[336875575,1725225048072,-1822.97,0.00024931,2]
[336875576,1725225048082,-500.0,0.00024931,2]
[336875577,1725225048091,-670.13,0.00024931,2]
[336875578,1725225048100,-1729.16,0.00024931,2]
[336875579,1725225048110,-500.0,0.00024931,2]
[336875580,1725225048119,-500.0,0.00024931,2]
[336875581,1725225048128,-1492.14,0.00024931,2]
[336875582,1725225048137,-500.0,0.00024931,2]
[336875583,1725225048147,-500.0,0.00024931,2]
[336875584,1725225048156,-1091.52,0.00024931,2]
[336875585,1725225048165,-500.0,0.00024931,2]
[336875586,1725225048175,-501.9532307,0.00024931,2]
[336875587,1725225048185,-545.21,0.00024931,2]
[336875588,1725225048197,-500.0,0.00024931,2]
[336875589,1725225048208,-1124.47,0.00024931,2]
[336875590,1725225048218,-2544.8,0.00024931,2]
[336875591,1725225048228,-728.64,0.00024931,2]
[336875592,1725225048238,-500.0,0.00024931,2]
[336875593,1725225048248,-503.24694525,0.00024931,2]
[336875594,1725225048257,-7917.5,0.00024931,2]
[336875595,1725225048266,-1557.03,0.00024931,2]
[336875596,1725225048276,-1527.56,0.00024931,2]
[336875597,1725225048286,-1106.41,0.00024931,2]
[336875598,1725225048295,-5805.32,0.00024931,2]
[336875599,1725225048304,-744.69,0.00024931,2]
[336875600,1725225048313,-500.0,0.00024931,2]
[336875601,1725225048323,-500.0,0.00024931,2]
[336875602,1725225048332,-1766.88,0.00024931,2]
[336875603,1725225048342,-1113.36,0.00024931,2]
[336875604,1725225048352,-3251.88,0.00024931,2]
[336875605,1725225048362,-500.0,0.00024931,2]
[336875606,1725225048372,-500.0,0.00024931,2]
[336875607,1725225048381,-541.82,0.00024931,2]
[336875608,1725225048391,-500.0,0.00024931,2]
[336875609,1725225048401,-1704.11,0.00024931,2]
[336875610,1725225048410,-2327.32,0.00024931,2]
[336875611,1725225048420,-1438.03,0.00024931,2]
[336875612,1725225048433,-500.0,0.00024931,2]
[336875613,1725225048443,-2006.4,0.00024931,2]
[336875614,1725225048452,-500.0,0.00024931,2]
[336875615,1725225048462,-500.0,0.00024931,2]
[336875616,1725225048472,-2188.15,0.00024931,2]
[336875617,1725225048482,-500.0,0.00024931,2]
[336875618,1725225048491,-500.0,0.00024931,2]
[336875619,1725225048501,-527.81,0.00024931,2]
[336875620,1725225048511,-500.0,0.00024931,2]
[336875621,1725225048521,-500.0,0.00024931,2]
[336875622,1725225048531,-1514.03,0.00024931,2]
[336875623,1725225048540,-1034.81,0.00024931,2]
[336875624,1725225048551,-1154.68,0.00024931,2]
[336875625,1725225048561,-500.0,0.00024931,2]
[336875626,1725225048571,-252.45638848,0.00024968,2]
[336875627,1725225048581,-500.0,0.00024973,2]
[336875628,1725225048591,-172.0,0.00025,2]
[336875629,1725225048602,-150.112233,0.00025,9]
[336875630,1725225048612,-150.112233,0.000251,7]
[336875631,1725225048622,-150.112233,0.000251,8]
[336875632,1725225048631,-150.112233,0.000251,7]
[336875633,1725225048641,-252.45638848,0.00025105,2]
[336875634,1725225048650,-5196.25171994,0.00025117,2]
[336875635,1725225048659,-153.02792783,0.0002512,7]
[336875636,1725225048670,-153.52,0.0002512,7]
[336875637,1725225048679,-153.21542783,0.0002512,7]
[336875638,1725225048688,-153.21542783,0.0002512,7]
[336875639,1725225048698,-153.21542783,0.0002512,7]
[336875640,1725225048707,-153.21542783,0.0002512,7]
[336875641,1725225048717,-153.21542783,0.0002512,7]
[336875642,1725225048727,-153.21542783,0.0002512,7]
[336875643,1725225048736,-153.21542783,0.0002512,7]
[336875644,1725225048746,-153.99529182,0.0002512,7]
[336875645,1725225048755,-154.49,0.0002512,7]
[336875646,1725225048764,-154.18279182,0.0002512,7]
[336875647,1725225048775,-154.18279182,0.0002512,7]
[336875648,1725225048785,-154.18279182,0.0002512,7]
[336875649,1725225048794,-154.18279182,0.0002512,7]
[336875650,1725225048805,-154.18279182,0.0002512,7]
[336875651,1725225048815,-154.18279182,0.0002512,7]
[336875652,1725225048826,-154.18279182,0.0002512,7]
[336875653,1725225048835,-194.4387601,0.0002518,2]
[336875654,1725225048844,-153.0,0.0002518,2]
[336875655,1725225048854,-153.0,0.0002518,2]
[336875656,1725225048863,-153.0,0.0002518,2]
[336875657,1725225048872,-212.60538226,0.00025195,3]
[336875658,1725225048882,-3000.0,0.000252,2]
[336875659,1725225048892,-150.112233,0.000252,7]
[336875660,1725225048902,-150.112233,0.000252,6]
[336875661,1725225048911,-150.112233,0.000252,10]
[336875662,1725225048923,-641.29,0.00025204,2]
[336875663,1725225048934,-641.29,0.00025204,2]
[336875664,1725225048943,-641.29,0.00025204,2]
[336875665,1725225048954,-641.29,0.00025204,2]
[336875666,1725225048964,-641.29,0.00025204,2]
[336875667,1725225048974,-641.29,0.00025204,2]
[336875668,1725225048983,-641.29,0.00025204,2]
[336875669,1725225048992,-641.29,0.00025204,2]
[336875670,1725225049002,-641.36748006,0.00025204,2]
[336875671,1725225049012,-500.0,0.00025205,2]
[336875672,1725225049023,-500.0,0.00025205,2]
[336875673,1725225049032,-500.0,0.00025205,2]
[336875674,1725225049041,-500.0,0.00025205,2]
[336875675,1725225049053,-500.0,0.00025205,2]
[336875676,1725225049062,-528.88123642,0.00025205,2]
[336875677,1725225049072,-500.0,0.00025205,2]
[336875678,1725225049082,-500.0,0.00025205,2]
[336875679,1725225049091,-500.0,0.00025205,2]
[336875680,1725225049100,-500.0,0.00025205,2]
[336875681,1725225049109,-758.67,0.00025205,2]
[336875682,1725225049119,-500.0,0.00025205,2]
[336875683,1725225049130,-500.0,0.00025205,2]
[336875684,1725225049140,-500.0,0.00025205,2]
[336875685,1725225049149,-500.0,0.00025205,2]
[336875686,1725225049159,-500.0,0.00025205,2]
[336875687,1725225049168,-641.2207701,0.00025205,2]
[336875688,1725225049178,-500.0,0.00025205,2]
[336875689,1725225049187,-500.0,0.00025205,2]
[336875690,1725225049310,-604.01,0.00025205,2]
[336875691,1725225049319,-591.13188001,0.00025205,2]
[336875692,1725225049330,-500.0,0.00025205,2]
[336875693,1725225049340,-503.48,0.00025205,2]
[336875694,1725225049351,-500.0,0.00025205,2]
[336875695,1725225049361,-500.0,0.00025205,2]
[336875696,1725225049370,-614.59,0.00025205,2]
[336875697,1725225049381,-553.72,0.00025205,2]
[336875698,1725225049391,-500.0,0.00025205,2]
[336875699,1725225049400,-500.0,0.00025205,2]
[336875700,1725225049410,-500.0,0.00025205,2]
[336875701,1725225049419,-500.0,0.00025205,2]
[336875702,1725225049433,-500.0,0.00025205,2]
[336875703,1725225049443,-500.0,0.00025205,2]
[336875704,1725225049453,-500.0,0.00025205,2]
[336875705,1725225049462,-500.0,0.00025205,2]
[336875706,1725225049474,-742.64,0.00025205,2]
[336875707,1725225049484,-500.0,0.00025205,2]
[336875708,1725225049494,-500.0,0.00025205,2]
[336875709,1725225049507,-364.89473141,0.00025205,2]
[336875710,1725225049517,-1329.77,0.00025205,2]
[336875711,1725225049526,-520.33,0.00025205,2]
[336875712,1725225049536,-500.0,0.00025205,2]
[336875713,1725225049545,-926.31,0.00025205,2]
[336875714,1725225049555,-500.0,0.00025205,2]
[336875715,1725225049564,-708.32,0.00025205,2]
[336875716,1725225049574,-500.0,0.00025205,2]
[336875717,1725225049584,-500.0,0.00025205,2]
[336875718,1725225049594,-510.35,0.00025205,2]
[336875719,1725225049604,-500.0,0.00025205,2]
[336875720,1725225049614,-500.0,0.00025205,2]
[336875721,1725225049624,-787.74,0.00025205,2]
[336875722,1725225049634,-500.0,0.00025205,2]
[336875723,1725225049643,-500.0,0.00025205,2]
[336875724,1725225049653,-500.0,0.00025205,2]
[336875725,1725225049663,-500.0,0.00025205,2]
[336875726,1725225049673,-491.00930412,0.00025205,2]
[336875727,1725225049683,-500.0,0.00025205,2]
[336875728,1725225049692,-500.0,0.00025205,2]
[336875729,1725225049701,-500.0,0.00025205,2]
[336875730,1725225049711,-536.96617675,0.00025205,2]
[336875731,1725225049721,-500.0,0.00025205,2]
[336875732,1725225049731,-500.0,0.00025205,2]
[336875733,1725225049741,-500.0,0.00025205,2]
[336875734,1725225049751,-500.0,0.00025205,2]
[336875735,1725225049760,-500.0,0.00025205,2]
[336875736,1725225049775,-500.0,0.00025205,2]
[336875737,1725225049786,-500.0,0.00025205,2]
[336875738,1725225049797,-500.0,0.00025205,2]
[336875739,1725225049808,-500.0,0.00025205,2]
[336875740,1725225049818,-500.0,0.00025205,2]
[336875741,1725225049828,-504.71622997,0.00025205,2]
[336875742,1725225049840,-3865.41,0.00025205,2]
[336875743,1725225049850,-394.65511845,0.00025205,2]
[336875744,1725225049859,-500.0,0.00025205,2]
[336875745,1725225049869,-500.0,0.00025205,2]
[336875746,1725225049878,-500.0,0.00025205,2]
[336875747,1725225049889,-500.0,0.00025205,2]
[336875748,1725225049900,-513.91093587,0.00025205,2]
[336875749,1725225049912,-500.0,0.00025205,2]
[336875750,1725225049921,-504.48033631,0.00025205,2]
[336875751,1725225049930,-500.0,0.00025205,2]
[336875752,1725225049941,-500.0,0.00025205,2]
[336875753,1725225049952,-1392.35,0.00025205,2]
[336875754,1725225049962,-593.91,0.00025205,2]
[336875755,1725225049971,-196.7526298,0.00025205,2]
[336875756,1725225049980,-663.34,0.00025205,2]
[336875757,1725225049990,-500.0,0.00025205,2]
[336875758,1725225050000,-500.0,0.00025205,2]
[336875759,1725225050010,-826.53,0.00025205,2]
[336875760,1725225050020,-500.0,0.00025205,2]
[336875761,1725225050030,-664.89,0.00025205,2]
[336875762,1725225050040,-500.0,0.00025205,2]
[336875763,1725225050050,-500.0,0.00025205,2]
[336875764,1725225050062,-500.0,0.00025205,2]
[336875765,1725225050071,-500.0,0.00025205,2]
[336875766,1725225050080,-500.0,0.00025205,2]
[336875767,1725225050090,-500.0,0.00025205,2]
[336875768,1725225050100,-674.31,0.00025205,2]
[336875769,1725225050111,-500.0,0.00025205,2]
[336875770,1725225050121,-500.0,0.00025205,2]
[336875771,1725225050132,-500.0,0.00025205,2]
[336875772,1725225050142,-500.0,0.00025205,2]
[336875773,1725225050153,-707.56,0.00025205,2]
[336875774,1725225050165,-597.66,0.00025205,2]
[336875775,1725225050174,-151.0,0.00025205,7]
[336875776,1725225050183,-500.0,0.00025205,2]
[336875777,1725225050192,-628.65773662,0.00025205,2]
[336875778,1725225050200,-500.0,0.00025205,2]
[336875779,1725225050210,-500.0,0.00025205,2]
[336875780,1725225050219,-1124.28,0.00025205,2]
[336875781,1725225050230,-500.0,0.00025205,2]
[336875782,1725225050241,-500.0,0.00025205,2]
[336875783,1725225050250,-505.55047737,0.00025205,2]
[336875784,1725225050259,-702.72,0.00025205,2]
[336875785,1725225050267,-500.0,0.00025205,2]
[336875786,1725225050277,-910.08,0.00025205,2]
[336875787,1725225050287,-500.0,0.00025205,2]
[336875788,1725225050296,-500.0,0.00025205,2]
[336875789,1725225050306,-788.15,0.00025205,2]
[336875790,1725225050315,-500.0,0.00025205,2]
[336875791,1725225050324,-500.0,0.00025205,2]
[336875792,1725225050334,-500.0,0.00025205,2]
[336875793,1725225050344,-500.0,0.00025205,2]
[336875794,1725225050353,-504.98489087,0.00025205,2]
[336875795,1725225050363,-500.0,0.00025205,2]
[336875796,1725225050372,-500.0,0.00025205,2]
[336875797,1725225050382,-500.0,0.00025205,2]
[336875798,1725225050392,-2056.18,0.00025205,2]
[336875799,1725225050402,-1633.69,0.00025205,2]
[336875800,1725225050411,-151.0,0.00025205,7]
[336875801,1725225050420,-739.16,0.00025205,2]
[336875802,1725225050434,-500.0,0.00025205,2]
[336875803,1725225050444,-500.0,0.00025205,2]
[336875804,1725225050453,-500.0,0.00025205,2]
[336875805,1725225050462,-500.0,0.00025205,2]
[336875806,1725225050473,-500.0,0.00025205,2]
[336875807,1725225050482,-500.0,0.00025205,2]
[336875808,1725225050491,-500.0,0.00025205,2]
[336875809,1725225050502,-500.0,0.00025205,2]
[336875810,1725225050512,-500.0,0.00025205,2]
[336875811,1725225050522,-500.0,0.00025205,2]
[336875812,1725225050532,-1326.88,0.00025205,2]
[336875813,1725225050541,-500.0,0.00025205,2]
[336875814,1725225050551,-500.0,0.00025205,2]
[336875815,1725225050560,-2208.97,0.00025205,2]
[336875816,1725225050570,-885.85,0.00025205,2]
[336875817,1725225050579,-1018.99,0.00025205,2]
[336875818,1725225050588,-500.0,0.00025205,2]
[336875819,1725225050597,-500.0,0.00025205,2]
[336875820,1725225050607,-678.45,0.00025205,2]
[336875821,1725225050616,-500.0,0.00025205,2]
[336875822,1725225050627,-821.97,0.00025205,2]
[336875823,1725225050636,-1329.98,0.00025205,2]
[336875824,1725225050646,-500.0,0.00025205,2]
[336875825,1725225050655,-500.0,0.00025205,2]
[336875826,1725225050664,-500.0,0.00025205,2]
[336875827,1725225050673,-500.0,0.00025205,2]
[336875828,1725225050683,-958.36,0.00025205,2]
[336875829,1725225050692,-561.17,0.00025205,2]
[336875830,1725225050702,-500.0,0.00025205,2]
[336875831,1725225050712,-500.0,0.00025205,2]
[336875832,1725225050722,-500.0,0.00025205,2]
[336875833,1725225050733,-500.0,0.00025205,2]
[336875834,1725225050743,-500.0,0.00025205,2]
[336875835,1725225050753,-151.0,0.00025205,7]
[336875836,1725225050764,-500.0,0.00025205,2]
[336875837,1725225050774,-500.0,0.00025205,2]
[336875838,1725225050785,-500.0,0.00025205,2]
[336875839,1725225050795,-500.0,0.00025205,2]
[336875840,1725225050805,-151.0,0.00025205,7]
[336875841,1725225050815,-500.0,0.00025205,2]
[336875842,1725225050825,-500.0,0.00025205,2]
[336875843,1725225050835,-500.0,0.00025205,2]
[336875844,1725225050844,-500.0,0.00025205,2]
[336875845,1725225050853,-500.0,0.00025205,2]
[336875846,1725225050863,-500.0,0.00025205,2]
[336875847,1725225050874,-522.37,0.00025205,2]
[336875848,1725225050884,-930.06,0.00025205,2]
[336875849,1725225050894,-500.0,0.00025205,2]
[336875850,1725225050905,-500.0,0.00025205,2]
[336875851,1725225050915,-1618.46,0.00025205,2]
[336875852,1725225050926,-710.65,0.00025205,2]
[336875853,1725225050936,-1969.34,0.00025205,2]
[336875854,1725225050946,-1988.7,0.00025205,2]
[336875855,1725225050956,-500.0,0.00025205,2]
[336875856,1725225050966,-500.0,0.00025205,2]
[336875857,1725225050977,-594.45,0.00025205,2]
[336875858,1725225050985,-1440.26,0.00025205,2]
[336875859,1725225050994,-500.0,0.00025205,2]
[336875860,1725225051004,-500.0,0.00025205,2]
[336875861,1725225051013,-786.6,0.00025205,2]
[336875862,1725225051023,-1739.61,0.00025205,2]
[336875863,1725225051034,-741.94,0.00025205,2]
[336875864,1725225051046,-500.0,0.00025205,2]
[336875865,1725225051056,-500.0,0.00025205,2]
[336875866,1725225051066,-500.0,0.00025205,2]
[336875867,1725225051075,-500.0,0.00025205,2]
[336875868,1725225051085,-500.0,0.00025205,2]
[336875869,1725225051096,-617.1,0.00025205,2]
[336875870,1725225051106,-500.0,0.00025205,2]
[336875871,1725225051115,-500.0,0.00025205,2]
[336875872,1725225051125,-500.0,0.00025205,2]
[336875873,1725225051134,-652.76,0.00025205,2]
[336875874,1725225051144,-1816.22,0.00025205,2]
[336875875,1725225051153,-500.0,0.00025205,2]
[336875876,1725225051162,-500.0,0.00025205,2]
[336875877,1725225051173,-836.23,0.00025205,2]
[336875878,1725225051183,-1562.81,0.00025205,2]
[336875879,1725225051194,-500.0,0.00025205,2]
[336875880,1725225051205,-500.0,0.00025205,2]
[336875881,1725225051214,-500.0,0.00025205,2]
[336875882,1725225051224,-500.0,0.00025205,2]
[336875883,1725225051234,-3192.1,0.00025205,2]
[336875884,1725225051243,-500.0,0.00025205,2]
[336875885,1725225051253,-1043.16,0.00025205,2]
[336875886,1725225051263,-15365.93,0.00025205,2]
[336875887,1725225051273,-500.0,0.00025205,2]
[336875888,1725225051282,-500.0,0.00025205,2]
[336875889,1725225051292,-500.0,0.00025205,2]
[336875890,1725225051301,-500.0,0.00025205,2]
[336875891,1725225051310,-659.34,0.00025205,2]
[336875892,1725225051320,-2976.45,0.00025205,2]
[336875893,1725225051329,-726.45,0.00025205,2]
[336875894,1725225051339,-1949.45,0.00025205,2]
[336875895,1725225051348,-500.0,0.00025205,2]
[336875896,1725225051357,-500.0,0.00025205,2]
[336875897,1725225051367,-577.33,0.00025205,2]
[336875898,1725225051377,-2301.47,0.00025205,2]
[336875899,1725225051385,-1412.53,0.00025205,2]
[336875900,1725225051394,-500.0,0.00025205,2]
[336875901,1725225051403,-500.0,0.00025205,2]
[336875902,1725225051412,-500.0,0.00025205,2]
[336875903,1725225051422,-959.62,0.00025205,2]
[336875904,1725225051440,-702.1,0.00025205,2]
[336875905,1725225051449,-500.0,0.00025205,2]
[336875906,1725225051459,-2358.38,0.00025205,2]
[336875907,1725225051469,-3034.26,0.00025205,2]
[336875908,1725225051479,-1747.52,0.00025205,2]
[336875909,1725225051488,-500.0,0.00025205,2]
[336875910,1725225051497,-500.0,0.00025205,2]
[336875911,1725225051509,-540.33,0.00025205,2]
[336875912,1725225051519,-531.45,0.00025205,2]
[336875913,1725225051528,-324.27186465,0.00025205,2]
[336875914,1725225051537,-1692.45,0.00025205,2]
[336875915,1725225051547,-500.0,0.00025205,2]
[336875916,1725225051556,-471.66990104,0.00025205,2]
[336875917,1725225051585,-28.33009896,0.00025205,2]
[336875918,1725225051594,-508.46,0.00025205,2]
[336875919,1725225051706,-708.36,0.00025205,2]
[336875920,1725225051718,-457.64891304,0.00025205,2]
[336875921,1725225051731,-42.35108696,0.00025205,2]
[336875922,1725225051740,-500.0,0.00025205,2]
[336875923,1725225051749,-500.0,0.00025205,2]
[336875924,1725225051757,-500.0,0.00025205,2]
[336875925,1725225051767,-747.59,0.00025205,2]
[336875926,1725225051776,-997.08028483,0.00025205,2]
[336875927,1725225051787,-660.76971517,0.00025205,2]
[336875928,1725225051796,-838.65,0.00025205,2]
[336875929,1725225051807,-500.0,0.00025205,2]
[336875930,1725225051817,-500.0,0.00025205,2]
[336875931,1725225051827,-265.18028476,0.00025205,2]
[336875932,1725225051839,-368.76971524,0.00025205,2]
[336875933,1725225051849,-964.35928015,0.00025205,2]
[336875934,1725225052039,-412.05071985,0.00025205,2]
[336875935,1725225052050,-500.0,0.00025205,2]
[336875936,1725225052060,-511.34820436,0.00025205,2]
[336875937,1725225052069,-391.47411515,0.00025205,2]
[336875938,1725225052079,-1292.18,0.00025205,2]
[336875939,1725225052088,-1532.4,0.00025205,2]
[336875940,1725225052097,-228.912194,0.00025205,7]
[336875941,1725225052107,-228.912194,0.00025205,7]
[336875942,1725225052119,-1077.65,0.00025205,2]
[336875943,1725225052129,-500.0,0.00025205,2]
[336875944,1725225052140,-1291.81,0.00025205,2]
[336875945,1725225052151,-500.0,0.00025205,2]
[336875946,1725225052160,-793.52,0.00025205,2]
[336875947,1725225052169,-1692.87,0.00025205,2]
[336875948,1725225052179,-667.57,0.00025205,2]
[336875949,1725225052188,-1822.97,0.00025205,2]
[336875950,1725225052198,-1729.16,0.00025205,2]
[336875951,1725225052207,-670.13,0.00025205,2]
[336875952,1725225052217,-500.0,0.00025205,2]
[336875953,1725225052227,-1492.14,0.00025205,2]
[336875954,1725225052236,-500.0,0.00025205,2]
[336875955,1725225052245,-262.95464729,0.00025205,2]
[336875956,1725225052255,-1091.52,0.00025205,2]
[336875957,1725225052264,-475.03827179,0.00025205,2]
[336875958,1725225052274,-545.21,0.00025205,2]
[336875959,1725225052284,-1124.47,0.00025205,2]
[336875960,1725225052294,-2544.8,0.00025205,2]
[336875961,1725225052304,-728.64,0.00025205,2]
[336875962,1725225052314,-500.0,0.00025205,2]
[336875963,1725225052326,-4623.17118237,0.00025205,2]
[336875967,1725225424150,161.702513,0.00014247,2]
[336875970,1725225930715,158.797461,0.00014247,2]
[336875972,1725226034646,150.5,0.00024648,120]
[336875973,1725226035126,150.5,0.00024638,120]
[336875974,1725226035587,150.5,0.00024628,120]
[336875975,1725226047151,-223.9839937,0.00022782,2]
[336875976,1725226098011,10065.41462677,0.000125,2]
[336876009,1725226232496,-399.375689,0.00022782,2]
[336876010,1725226232506,-300.0,0.00022827,2]
[336876011,1725226232516,-744.4024012,0.00022828,2]
[336876012,1725226232527,-24900.0,0.00022828,2]
[336876013,1725226232538,-309.0600198,0.00022841,2]
[336876014,1725226232550,-162.331425,0.0002315,2]
[336876015,1725226232561,-166.666667,0.00023292,2]
[336876016,1725226232570,-166.666667,0.00023394,2]
[336876017,1725226232580,-166.666667,0.00023495,2]
[336876018,1725226232589,-166.666667,0.00023596,2]
[336876019,1725226232599,-166.666667,0.00023697,2]
[336876020,1725226232608,-166.666667,0.00023798,2]
[336876021,1725226232618,-678.237463,0.00023836,2]
[336876022,1725226232628,-166.666667,0.00023899,2]
[336876023,1725226232639,-166.666667,0.00024001,2]
[336876024,1725226232650,-166.666667,0.00024102,2]
[336876025,1725226232661,-166.666667,0.00024203,2]
[336876026,1725226232671,-166.666667,0.00024304,2]
[336876027,1725226232680,-166.666667,0.00024405,2]
[336876028,1725226232689,-1638.11194211,0.00024457,2]
[336876029,1725226232699,-161.702513,0.00024475,2]
[336876030,1725226232708,-166.666667,0.00024506,2]
[336876031,1725226232718,-2000.0,0.00024557,2]
[336876032,1725226232727,-182.34904719,0.00024557,2]
[336876033,1725226232737,-946.09395102,0.00024647,3]
[336876034,1725226232746,-186.13,0.00024647,3]
[336876035,1725226232756,-500.0,0.00024656,2]
[336876036,1725226232766,-500.0,0.00024656,2]
[336876037,1725226232775,-500.0,0.00024656,2]
[336876038,1725226232785,-451.407166,0.00024656,2]
[336876039,1725226232793,-500.0,0.00024656,2]
[336876040,1725226232802,-3592.30506629,0.00024657,11]
[336876041,1725226232813,-500.0,0.00024657,2]
[336876042,1725226232823,-512.28540056,0.00024657,2]
[336876043,1725226232833,-500.0,0.00024657,2]
[336876044,1725226232842,-500.0,0.00024657,2]
[336876045,1725226232851,-500.0,0.00024657,2]
[336876046,1725226232861,-500.0,0.00024657,2]
[336876047,1725226232870,-725.08,0.00024657,2]
[336876048,1725226232880,-500.0,0.00024657,2]
[336876049,1725226232890,-500.0,0.00024657,2]
[336876050,1725226232900,-500.0,0.00024657,2]
[336876051,1725226232912,-500.0,0.00024657,2]
[336876052,1725226232922,-500.0,0.00024657,2]
[336876053,1725226232931,-282.38605733,0.00024657,2]